fUST/lending_fUST_20250816
["ID","MTS","AMOUNT","RATE_DAILY","PERIOD"]
[379475090,1755301844564,-686.57820285,0.00027443,2]
[379475091,1755301844574,-686.57820285,0.00027443,2]
[379475092,1755301844583,-686.57820285,0.00027443,2]
[379475093,1755301844593,-686.57820285,0.00027443,2]
[379475094,1755301844719,-686.57820285,0.00027443,2]
[379475095,1755301844728,-686.57820285,0.00027443,2]
[379475096,1755301844738,-686.57820285,0.00027443,2]
[379475097,1755301844747,-670.88498678,0.00027443,2]
[379475098,1755301844756,-670.88498678,0.00027443,2]
[379475099,1755301844764,-670.88498678,0.00027443,2]
[379475100,1755301844773,-670.88498678,0.00027443,2]
[379475101,1755301844782,-670.88498678,0.00027443,2]
[379475102,1755301844791,-670.88498678,0.00027443,2]
[379475103,1755301844800,-670.88498678,0.00027443,2]
[379475104,1755301844809,-94200.6580747,0.00027444,2]
[379475105,1755301844834,-1026.12950513,0.00027444,2]
[379475116,1755302415050,538.33,0.000273,120]
[379475118,1755302431758,200.0,0.00028185,120]
[379475121,1755302499020,160.030837,0.00013699,2]
[379475138,1755302825099,-533.82229938,0.00018622,2]
[379475139,1755302825119,-256.42865287,0.0001881,2]
[379475156,1755302830082,-3.81069176,0.0001881,2]
[379475158,1755302830102,-521.33488436,0.000198,2]
[379475176,1755303032411,-849.35611049,0.000198,2]
[379475178,1755303032421,-160.0,0.00019884,2]
[379475180,1755303032432,-1072.02418902,0.000199,2]
[379475182,1755303032442,-150.0,0.00020352,2]
[379475184,1755303032453,-1072.02418879,0.00020408,2]
[379475186,1755303032468,-414.90256518,0.00020916,2]
[379475201,1755303036072,200.0,0.00027,120]
[379475202,1755303036393,200.0,0.000278,120]
[379475203,1755303036816,200.0,0.000286,120]
[379475208,1755303038384,-657.12162361,0.00020916,2]
[379475209,1755303038394,-160.030837,0.00021404,2]
[379475210,1755303038403,-1072.02418879,0.00021424,2]
[379475211,1755303038413,-1072.02418879,0.00021932,2]
[379475213,1755303038422,-169.0,0.00022,2]
[379475214,1755303038431,-294.7,0.00022202,2]
[379475215,1755303038440,-1072.02418879,0.0002244,2]
[379475216,1755303038449,-242.0,0.00022947,2]
[379475217,1755303038464,-1072.02418879,0.00022948,2]
[379475218,1755303038473,-300.0,0.00023404,2]
[379475219,1755303038482,-200.0,0.00023405,20]
[379475220,1755303038491,-200.0,0.00023405,20]
[379475221,1755303038502,-200.0,0.00023405,20]
[379475222,1755303038511,-200.0,0.00023405,20]
[379475223,1755303038520,-200.0,0.00023405,20]
[379475224,1755303038530,-200.0,0.00023405,20]
[379475225,1755303038539,-200.0,0.00023405,20]
[379475226,1755303038548,-200.0,0.00023405,20]
[379475227,1755303038558,-1072.02418879,0.00023456,2]
[379475228,1755303038567,-462.0440047,0.00023643,2]
[379475229,1755303038576,-372.68726593,0.00023964,2]
[379475230,1755303038595,-699.33692286,0.00023964,2]
[379475231,1755303038605,-91.81638622,0.00024052,2]
[379475269,1755303040360,-1072.02418879,0.00024473,2]
[379475271,1755303040370,-500.0,0.00024602,2]
[379475273,1755303040380,-160.0,0.00024649,2]
[379475275,1755303040390,-160.0,0.00024651,2]
[379475277,1755303040400,-160.0,0.00024651,2]
[379475278,1755303040409,-160.0,0.00024651,2]
[379475280,1755303040419,-215.63758983,0.00024651,2]
[379475282,1755303040429,-216.77912109,0.00024651,2]
[379475284,1755303040439,-843.47195277,0.00024651,2]
[379475286,1755303040449,-232.08354597,0.00024651,2]
[379475288,1755303040466,-1072.02418879,0.00024981,2]
[379475290,1755303040475,-187.503,0.00024981,8]
[379475292,1755303040485,-697.93877464,0.000252,2]
[379475294,1755303040495,-460.0,0.00025343,2]
[379475296,1755303040505,-420.0,0.00025396,2]
[379475298,1755303040514,-1072.02418879,0.00025489,3]
[379475300,1755303040523,-200.0,0.00025681,20]
[379475302,1755303040535,-200.0,0.00025681,20]
[379475303,1755303040544,-200.0,0.00025681,20]
[379475305,1755303040555,-200.0,0.00025681,20]
[379475307,1755303040566,-200.0,0.00025681,20]
[379475309,1755303040576,-200.0,0.00025681,20]
[379475311,1755303040586,-200.0,0.00025681,20]
[379475313,1755303040595,-200.0,0.00025681,20]
[379475315,1755303040604,-200.0,0.00025681,20]
[379475317,1755303040615,-200.0,0.00025681,20]
[379475319,1755303040625,-240.0,0.00025681,20]
[379475321,1755303040634,-151.0,0.0002595,2]
[379475323,1755303040645,-151.0,0.0002595,2]
[379475325,1755303040654,-250.0,0.0002595,2]
[379475327,1755303040664,-151.0,0.0002595,2]
[379475329,1755303040673,-151.0,0.0002595,2]
[379475342,1755303040797,-250.0,0.0002595,2]
[379475344,1755303040807,-151.0,0.0002595,2]
[379475346,1755303040817,-151.0,0.0002595,2]
[379475348,1755303040829,-250.0,0.0002595,2]
[379475350,1755303040838,-151.0,0.0002595,2]
[379475352,1755303040847,-250.0,0.0002595,2]
[379475354,1755303040856,-151.0,0.0002595,2]
[379475356,1755303040865,-250.0,0.0002595,2]
[379475358,1755303040875,-250.0,0.0002595,2]
[379475359,1755303040885,-250.0,0.0002595,2]
[379475361,1755303040894,-17842.522448,0.0002595,2]
[379475363,1755303040904,-1072.02418879,0.00025997,4]
[379475365,1755303040914,-169.57030923,0.00026176,2]
[379475367,1755303040924,-233.18110851,0.00026176,2]
[379475369,1755303040933,-317.24846275,0.00026176,2]
[379475371,1755303040943,-2152.0,0.00026177,2]
[379475373,1755303040952,-636.0,0.00026177,2]
[379475375,1755303040962,-408.0,0.00026177,2]
[379475377,1755303040971,-169.14077027,0.00026178,2]
[379475379,1755303040981,-256.53517975,0.00026406,2]
[379475381,1755303040990,-1072.02418879,0.00026505,5]
[379475383,1755303040999,-169.14077027,0.00026506,2]
[379475385,1755303041008,-173.01147087,0.00026715,2]
[379475387,1755303041018,-500.0,0.00026794,2]
[379475389,1755303041027,-256.53517973,0.00026815,2]
[379475391,1755303041036,-169.14077027,0.00026834,2]
[379475393,1755303041045,-301.45420449,0.00027,30]
[379475395,1755303041055,-1072.02418879,0.00027013,6]
[379475397,1755303041065,-169.14077027,0.00027162,2]
[379475399,1755303041074,-16046.60779391,0.00027224,2]
[379475400,1755303041083,-256.53517973,0.00027224,2]
[379475402,1755303041093,-2024.25,0.00027314,10]
[379475404,1755303041103,-2577.55,0.00027314,10]
[379475406,1755303041112,-395.13920281,0.00027324,2]
[379475408,1755303041122,-500.0,0.00027324,2]
[379475410,1755303041132,-500.0,0.00027324,2]
[379475412,1755303041142,-500.0,0.00027324,2]
[379475414,1755303041152,-500.0,0.00027324,2]
[379475416,1755303041162,-500.0,0.00027324,2]
[379475418,1755303041172,-317.904156,0.00027324,2]
[379475420,1755303041181,-500.0,0.00027324,2]
[379475422,1755303041191,-500.0,0.00027324,2]
[379475424,1755303041201,-500.0,0.00027324,2]
[379475425,1755303041211,-500.0,0.00027324,2]
[379475426,1755303041220,-500.0,0.00027324,2]
[379475427,1755303041230,-500.0,0.00027324,2]
[379475428,1755303041239,-500.0,0.00027324,2]
[379475429,1755303041248,-520.0,0.00027324,2]
[379475430,1755303041258,-520.0,0.00027324,2]
[379475431,1755303041267,-520.0,0.00027324,2]
[379475432,1755303041276,-520.0,0.00027324,2]
[379475433,1755303041285,-520.0,0.00027324,2]
[379475434,1755303041295,-520.0,0.00027324,2]
[379475435,1755303041304,-520.0,0.00027324,2]
[379475436,1755303041314,-520.0,0.00027324,2]
[379475437,1755303041323,-520.0,0.00027324,2]
[379475438,1755303041333,-506.0,0.00027324,2]
[379475439,1755303041343,-506.0,0.00027324,2]
[379475440,1755303041352,-506.0,0.00027324,2]
[379475441,1755303041362,-506.0,0.00027324,2]
[379475442,1755303041371,-506.0,0.00027324,2]
[379475443,1755303041381,-6728.24424027,0.00027324,2]
[379475444,1755303041392,-78253.19971228,0.00027325,2]
[379475459,1755303043360,-1217.5051285,0.00027325,2]
[379475460,1755303043373,-1761.70378009,0.00027325,2]
[379475461,1755303043384,-115768.47926142,0.00027325,2]
[379475465,1755303046553,-1885.78301885,0.00021304,2]
[379475466,1755303046563,-4101.42507221,0.00027325,2]
[379475467,1755303046575,-2386.76990618,0.00027325,2]
[379475468,1755303046587,-500.0,0.00027325,2]
[379475469,1755303046599,-1540.6192763,0.00027325,2]
[379475470,1755303046610,-2546.02620468,0.00027325,2]
[379475471,1755303046621,-3994.39706676,0.00027325,2]
[379475472,1755303046633,-2913.44198135,0.00027325,2]
[379475485,1755303499282,160.030837,0.00013699,2]
[379475487,1755303571200,5000.0,0.00028767,120]
[379475500,1755304026131,-311.68313537,0.000199,2]
[379475502,1755304044102,-273.44328838,0.000199,2]
[379475503,1755304045081,-171.52984972,0.000199,2]
[379475504,1755304045104,-440.26465686,0.00020408,2]
[379475535,1755304232427,-716.75430916,0.000199,2]
[379475537,1755304232437,-151.64101356,0.00020367,2]
[379475539,1755304232446,-716.75430897,0.00020408,2]
[379475541,1755304232455,-716.75430897,0.00020916,2]
[379475543,1755304232465,-716.75430897,0.00021424,2]
[379475544,1755304232474,-716.75430897,0.00021932,2]
[379475546,1755304232483,-716.75430897,0.0002244,2]
[379475548,1755304232492,-160.030837,0.00022505,2]
[379475550,1755304232501,-716.75430897,0.00022948,2]
[379475552,1755304232510,-160.0,0.00023,2]
[379475555,1755304232520,-150.41,0.0002304,2]
[379475558,1755304232529,-272.5359392,0.00023172,2]
[379475561,1755304232539,-716.75430897,0.00023456,2]
[379475563,1755304232548,-300.0,0.00023782,2]
[379475564,1755304232557,-216.77912109,0.00023783,2]
[379475566,1755304232567,-843.47195277,0.00023783,2]
[379475568,1755304232576,-232.08354597,0.00023783,2]
[379475570,1755304232586,-716.75430897,0.00023964,2]
[379475572,1755304232595,-200.0,0.00024115,20]
[379475574,1755304232604,-200.0,0.00024115,20]
[379475576,1755304232614,-200.0,0.00024115,20]
[379475578,1755304232623,-200.0,0.00024115,20]
[379475580,1755304232632,-200.0,0.00024115,20]
[379475582,1755304232641,-200.0,0.00024115,20]
[379475583,1755304232650,-200.0,0.00024115,20]
[379475585,1755304232660,-200.0,0.00024115,20]
[379475587,1755304232670,-716.75430897,0.00024473,2]
[379475589,1755304232680,-500.0,0.00024602,2]
[379475591,1755304232689,-156.560358,0.00024922,2]
[379475593,1755304232698,-716.75430897,0.00024981,2]
[379475595,1755304232708,-151.0,0.00025,5]
[379475597,1755304232717,-300.82,0.00025135,2]
[379475599,1755304232726,-716.75430897,0.00025489,3]
[379475600,1755304232735,-187.504,0.00025648,10]
[379475601,1755304232745,-420.0,0.00025796,2]
[379475602,1755304232754,-13638.23875972,0.0002595,2]
[379475603,1755304232764,-151.0,0.0002595,2]
[379475604,1755304232773,-250.0,0.0002595,2]
[379475606,1755304232782,-250.0,0.0002595,2]
[379475607,1755304232791,-250.0,0.0002595,2]
[379475608,1755304232800,-250.0,0.0002595,2]
[379475609,1755304232810,-250.0,0.0002595,2]
[379475610,1755304232819,-250.0,0.0002595,2]
[379475611,1755304232828,-716.75430897,0.00025997,4]
[379475612,1755304232837,-6151.07805532,0.00026,2]
[379475613,1755304232847,-520.51100165,0.00026,2]
[379475614,1755304232856,-500.0,0.00026457,20]
[379475615,1755304232866,-200.0,0.00026457,20]
[379475616,1755304232876,-200.0,0.00026457,20]
[379475617,1755304232885,-200.0,0.00026457,20]
[379475618,1755304232895,-200.0,0.00026457,20]
[379475619,1755304232904,-200.0,0.00026457,20]
[379475620,1755304232913,-200.0,0.00026457,20]
[379475621,1755304232922,-200.0,0.00026457,20]
[379475622,1755304232932,-200.0,0.00026457,20]
[379475623,1755304232941,-200.0,0.00026457,20]
[379475624,1755304233039,-200.0,0.00026457,20]
[379475625,1755304233049,-240.0,0.00026457,20]
[379475626,1755304233061,-716.75430897,0.00026505,5]
[379475627,1755304233072,-465.29251643,0.00026667,2]
[379475628,1755304233081,-173.01147086,0.00026715,2]
[379475629,1755304233091,-500.0,0.00026794,2]
[379475630,1755304233100,-1529.95,0.00027,10]
[379475631,1755304233110,-404.14785645,0.00027009,2]
[379475632,1755304233119,-512.7800839,0.00027009,2]
[379475633,1755304233128,-512.7800839,0.00027009,2]
[379475634,1755304233139,-512.7800839,0.00027009,2]
[379475635,1755304233150,-512.7800839,0.00027009,2]
[379475636,1755304233159,-512.7800839,0.00027009,2]
[379475637,1755304233169,-512.7800839,0.00027009,2]
[379475638,1755304233178,-512.7800839,0.00027009,2]
[379475639,1755304233187,-512.7800839,0.00027009,2]
[379475640,1755304233196,-512.7800839,0.00027009,2]
[379475641,1755304233205,-8664.93306015,0.0002701,5]
[379475642,1755304233218,-6629.26828219,0.0002701,5]
[379475643,1755304233248,-512.7800839,0.00027009,2]
[379475644,1755304233257,-2074.59312573,0.0002701,5]
[379475650,1755304238508,-833.4221741,0.00027,10]
[379475651,1755304238659,-1555.3378259,0.00027,10]
[379475652,1755304238759,-512.7800839,0.00027009,2]
[379475653,1755304238769,-512.7800839,0.00027009,2]
[379475654,1755304238778,-512.7800839,0.00027009,2]
[379475655,1755304238788,-512.7800839,0.00027009,2]
[379475656,1755304238797,-316.86279824,0.00027009,2]
[379475657,1755304238807,-500.0,0.00027009,2]
[379475658,1755304238816,-171.91569242,0.00027009,2]
[379475659,1755304238825,-500.0,0.00027009,2]
[379475660,1755304238835,-500.0,0.00027009,2]
[379475661,1755304238844,-500.0,0.00027009,2]
[379475662,1755304238853,-512.7800839,0.00027009,2]
[379475663,1755304238862,-512.7800839,0.00027009,2]
[379475664,1755304238871,-500.0,0.00027009,2]
[379475665,1755304238880,-500.0,0.00027009,2]
[379475666,1755304238889,-388.76697896,0.00027009,2]
[379475667,1755304238899,-373.51950479,0.00027009,2]
[379475668,1755304238910,-512.7800839,0.00027009,2]
[379475669,1755304238920,-512.7800839,0.00027009,2]
[379475670,1755304238930,-502.65015297,0.00027009,2]
[379475671,1755304238939,-512.7800839,0.00027009,2]
[379475672,1755304238948,-110691.58121192,0.0002701,5]
[379475673,1755304238958,-716.75430897,0.00027013,6]
[379475674,1755304238967,-156.560358,0.00027036,20]
[379475675,1755304238976,-451.23,0.0002723,2]
[379475676,1755304238985,-40817.89212276,0.00027244,2]
[379475677,1755304238995,-3364.12212014,0.00027262,2]
[379475678,1755304239008,-226614.737291,0.00027263,2]
[379475679,1755304239019,-496.92544591,0.00027263,2]
[379475680,1755304239028,-500.0,0.00027273,2]
[379475681,1755304239038,-500.0,0.00027273,2]
[379475682,1755304239049,-500.56067958,0.00027273,2]
[379475683,1755304239058,-500.0,0.00027273,2]
[379475684,1755304239067,-500.0,0.00027273,2]
[379475685,1755304239078,-500.0,0.00027273,2]
[379475686,1755304239087,-500.13962491,0.00027273,2]
[379475687,1755304239096,-500.0,0.00027273,2]
[379475688,1755304239106,-500.0,0.00027273,2]
[379475689,1755304239115,-339.30327965,0.00027273,2]
[379475690,1755304239124,-500.0,0.00027273,2]
[379475691,1755304239133,-10697.73852928,0.00027273,2]
[379475692,1755304239143,-1130.65781939,0.00027273,2]
[379475693,1755304239152,-294.0,0.00027275,2]
[379475694,1755304239162,-191.3,0.00027315,3]
[379475695,1755304239171,-573.95,0.00027315,3]
[379475696,1755304239180,-263.54304095,0.00027319,2]
[379475697,1755304239189,-1130.65781937,0.00027323,2]
[379475698,1755304239198,-151.0,0.00027325,2]
[379475699,1755304239207,-151.0,0.00027325,2]
[379475700,1755304239216,-500.0,0.00027373,2]
[379475701,1755304239226,-500.0,0.00027373,2]
[379475702,1755304239235,-500.0,0.00027373,2]
[379475703,1755304239244,-500.0,0.00027373,2]
[379475704,1755304239254,-193.59613261,0.00027373,2]
[379475705,1755304239263,-500.0,0.00027373,2]
[379475706,1755304239272,-500.0,0.00027373,2]
[379475707,1755304239281,-568.94013335,0.00027373,2]
[379475708,1755304239290,-500.0,0.00027373,2]
[379475709,1755304239299,-500.0,0.00027373,2]
[379475710,1755304239308,-500.0,0.00027373,2]
[379475711,1755304239317,-215.12347344,0.00027373,2]
[379475712,1755304239327,-396.89855494,0.00027373,2]
[379475713,1755304239336,-501.2489465,0.00027373,2]
[379475714,1755304239345,-500.0,0.00027373,2]
[379475715,1755304239355,-1130.65781937,0.00027373,2]
[379475716,1755304239364,-151.0,0.00027374,2]
[379475717,1755304239374,-151.0,0.00027374,2]
[379475718,1755304239384,-151.0,0.00027374,2]
[379475719,1755304239393,-500.0,0.00027374,2]
[379475720,1755304239402,-151.0,0.00027374,2]
[379475721,1755304239411,-151.0,0.00027374,2]
[379475722,1755304239420,-197.999999,0.00027374,2]
[379475723,1755304239429,-151.0,0.00027374,2]
[379475724,1755304239438,-204.51895134,0.00027374,2]
[379475725,1755304239447,-226614.737291,0.0002738,2]
[379475726,1755304239456,-496.92544591,0.0002738,2]
[379475727,1755304239466,-10697.73852926,0.0002739,2]
[379475728,1755304239475,-153.43776749,0.00027397,2]
[379475729,1755304239484,-500.0,0.00027397,5]
[379475730,1755304239495,-1000.0,0.000274,2]
[379475731,1755304239504,-1000.0,0.000274,2]
[379475732,1755304239514,-1250.77,0.000274,2]
[379475733,1755304239523,-12273.87,0.000274,7]
[379475734,1755304239532,-843.47195277,0.000274,7]
[379475735,1755304239541,-232.08354597,0.000274,7]
[379475736,1755304239550,-16851.28,0.000274,2]
[379475737,1755304239559,-216.77912109,0.000274,7]
[379475738,1755304239568,-200.0,0.0002741,18]
[379475739,1755304239578,-1130.65781937,0.00027423,2]
[379475740,1755304239587,-160.0,0.00027437,3]
[379475741,1755304239596,-160.72418204,0.00027437,3]
[379475742,1755304239605,-326.0,0.00027437,3]
[379475743,1755304239614,-326.0,0.00027437,3]
[379475744,1755304239623,-326.0,0.00027437,3]
[379475745,1755304239632,-326.0,0.00027437,3]
[379475746,1755304239641,-326.0,0.00027437,3]
[379475747,1755304239650,-326.0,0.00027437,3]
[379475748,1755304239659,-326.0,0.00027437,3]
[379475749,1755304239668,-1761.0,0.00027437,3]
[379475750,1755304239677,-1761.0,0.00027437,3]
[379475751,1755304239686,-1761.0,0.00027437,3]
[379475752,1755304239696,-715.21500425,0.00027437,3]
[379475753,1755304239705,-232.08354597,0.00027437,3]
[379475754,1755304239715,-462.0440047,0.00027437,3]
[379475755,1755304239723,-216.77912109,0.00027437,3]
[379475756,1755304239733,-1030.01,0.0002744,10]
[379475757,1755304239743,-326.0,0.00027455,3]
[379475758,1755304239752,-470.32695641,0.00027455,3]
[379475759,1755304239761,-843.47195277,0.00027455,3]
[379475760,1755304239770,-500.0,0.00027473,5]
[379475761,1755304239779,-150.0,0.00027473,5]
[379475762,1755304239789,-1130.65781937,0.00027473,2]
[379475763,1755304239799,-226614.737291,0.00027497,2]
[379475764,1755304239808,-496.92544591,0.00027497,2]
[379475765,1755304239817,-2000.0,0.000275,2]
[379475766,1755304239827,-1000.0,0.000275,2]
[379475767,1755304239837,-150.0,0.000275,10]
[379475768,1755304239846,-645.0,0.000275,2]
[379475769,1755304239856,-455773.57456468,0.000275,4]
[379475770,1755304239946,-783.8139614,0.000275,4]
[379475771,1755304239957,-485.47782603,0.000275,4]
[379475772,1755304239968,-730.9799992,0.000275,4]
[379475773,1755304239979,-1600.0,0.000275,4]
[379475774,1755304239991,-44414.39143901,0.000275,4]
[379475775,1755304240737,-168.0,0.00027039,2]
[379475776,1755304240752,-43653.05425735,0.000275,4]
[379475777,1755304240769,-134591.95760411,0.000275,4]
[379475783,1755304243639,-160.0,0.00023783,2]
[379475784,1755304243650,-168.0,0.000273,2]
[379475785,1755304243659,-500.0,0.00027374,2]
[379475786,1755304243669,-12525.56034822,0.000275,4]
[379475787,1755304243678,-249629.24418809,0.000275,4]
[379475790,1755304246473,-500.0,0.00027009,2]
[379475791,1755304246494,-500.0,0.00027009,2]
[379475792,1755304246504,-500.0,0.00027009,2]
[379475793,1755304246513,-500.0,0.00027009,2]
[379475794,1755304246522,-382.89831172,0.00027009,2]
[379475795,1755304246532,-500.0,0.00027009,2]
[379475796,1755304246541,-500.0,0.00027009,2]
[379475797,1755304246550,-151.0,0.00027223,2]
[379475798,1755304246559,-151.0,0.00027223,2]
[379475799,1755304246568,-160.0,0.000274,7]
[379475800,1755304246577,-160.0,0.00027437,3]
[379475801,1755304246586,-118.25138332,0.0002749,10]
[379475803,1755304246636,-1872.37861668,0.0002749,10]
[379475804,1755304246646,-3709.23939865,0.000275,4]
[379475805,1755304246658,-572.97936552,0.000275,4]
[379475806,1755304246669,-1179.00849603,0.000275,4]
[379475821,1755304864646,160.030837,0.00013699,2]
[379475830,1755305227469,-654.31078719,0.000199,2]
[379475832,1755305238130,-344.5427733,0.000199,2]
[379475833,1755305238155,-54.83930504,0.00020408,2]
[379475834,1755305240080,-944.01425529,0.00020408,2]
[379475835,1755305240102,-380.84753122,0.00020916,2]
[379475838,1755305370111,-931.36593076,0.000199,2]
[379475839,1755305370133,-931.36593061,0.00020408,2]
[379475840,1755305370155,-931.36593061,0.00020916,2]
[379475841,1755305370176,-931.36593061,0.00021424,2]
[379475842,1755305370200,-150.0,0.00021803,2]
[379475843,1755305370222,-931.36593061,0.00021932,2]
[379475844,1755305370242,-272.0,0.00022,2]
[379475845,1755305370265,-931.36593061,0.0002244,2]
[379475846,1755305370286,-931.36593061,0.00022948,2]
[379475847,1755305370307,-0.76604498,0.00023456,2]
[379475863,1755305436308,-310.19501095,0.0002034,2]
[379475864,1755305436317,-930.59988563,0.00023456,2]
[379475865,1755305436327,-300.0,0.00023917,2]
[379475866,1755305436336,-843.47195277,0.00023918,2]
[379475867,1755305436346,-462.0440047,0.00023918,2]
[379475868,1755305436356,-528.28344625,0.00023918,2]
[379475869,1755305436365,-417.15472785,0.00023918,2]
[379475870,1755305436376,-931.36593061,0.00023964,2]
[379475871,1755305436385,-160.030837,0.00023973,2]
[379475872,1755305436395,-200.0,0.00024396,20]
[379475873,1755305436404,-200.0,0.00024396,20]
[379475874,1755305436414,-200.0,0.00024396,20]
[379475875,1755305436423,-200.0,0.00024396,20]
[379475876,1755305436432,-200.0,0.00024396,20]
[379475877,1755305436441,-200.0,0.00024396,20]
[379475878,1755305436450,-200.0,0.00024396,20]
[379475879,1755305436460,-200.0,0.00024396,20]
[379475880,1755305436469,-931.36593061,0.00024473,2]
[379475881,1755305436479,-241.87229212,0.00024602,2]
[379475882,1755305436491,-258.12770788,0.00024602,2]
[379475883,1755305436501,-160.0,0.00024668,2]
[379475884,1755305436511,-232.08354597,0.00024672,2]
[379475885,1755305436520,-216.77912109,0.00024672,2]
[379475886,1755305436530,-931.36593061,0.00024981,2]
[379475887,1755305436540,-310.19501095,0.0002534,2]
[379475888,1755305436549,-248.55025774,0.00025489,3]
[379475907,1755305438705,-682.81567287,0.00025489,3]
[379475909,1755305438714,-420.0,0.00025939,2]
[379475912,1755305438724,-2000.0,0.00025949,2]
[379475914,1755305438733,-931.36593061,0.00025997,4]
[379475916,1755305438742,-168.0,0.00026213,2]
[379475918,1755305438753,-2000.0,0.00026456,2]
[379475920,1755305438763,-168.0,0.0002647,2]
[379475922,1755305438772,-931.36593061,0.00026505,5]
[379475924,1755305438781,-189.10828174,0.00026675,2]
[379475926,1755305438790,-168.0,0.00026706,2]
[379475927,1755305438799,-208.0,0.0002676,2]
[379475929,1755305438808,-200.0,0.00026763,20]
[379475931,1755305438817,-200.0,0.00026763,20]
[379475933,1755305438827,-200.0,0.00026763,20]
[379475936,1755305438836,-200.0,0.00026763,20]
[379475937,1755305438845,-200.0,0.00026763,20]
[379475940,1755305438855,-200.0,0.00026763,20]
[379475941,1755305438863,-200.0,0.00026763,20]
[379475943,1755305438872,-200.0,0.00026763,20]
[379475945,1755305438882,-200.0,0.00026763,20]
[379475947,1755305438891,-200.0,0.00026763,20]
[379475949,1755305438900,-240.0,0.00026763,20]
[379475951,1755305438909,-500.0,0.00026794,2]
[379475953,1755305438918,-931.36593061,0.00027013,6]
[379475955,1755305438927,-208.0,0.0002719,2]
[379475957,1755305438937,-816.23688093,0.0002719,2]
[379475959,1755305438946,-816.23688089,0.00027236,2]
[379475961,1755305438955,-1060.0,0.00027244,2]
[379475963,1755305438964,-816.23688089,0.00027281,2]
[379475965,1755305438973,-152.61327831,0.00027289,2]
[379475967,1755305438983,-209.86299766,0.00027289,2]
[379475969,1755305438991,-452.26312778,0.0002729,2]
[379475971,1755305439000,-20254.99684151,0.0002729,3]
[379475983,1755305439096,-160.0,0.0002729,3]
[379475985,1755305439106,-528.28344625,0.0002729,3]
[379475987,1755305439115,-843.47195277,0.0002729,3]
[379475989,1755305439124,-232.08354597,0.0002729,3]
[379475991,1755305439133,-417.15472785,0.0002729,3]
[379475993,1755305439143,-452.26312774,0.00027312,2]
[379475995,1755305439152,-816.23688089,0.00027327,2]
[379475997,1755305439161,-452.26312774,0.00027334,2]
[379475999,1755305439170,-452.26312774,0.00027356,2]
[379476001,1755305439179,-816.23688089,0.00027372,2]
[379476002,1755305439188,-500.0,0.00027373,2]
[379476004,1755305439197,-151.0,0.00027374,2]
[379476006,1755305439206,-151.0,0.00027374,2]
[379476009,1755305439216,-500.0,0.00027374,2]
[379476010,1755305439225,-452.26312774,0.00027378,2]
[379476012,1755305439234,-388.11,0.0002738,3]
[379476014,1755305439243,-194.05,0.0002738,3]
[379476016,1755305439252,-582.2,0.0002738,3]
[379476018,1755305439261,-1658.86,0.0002738,10]
[379476020,1755305439271,-1382.38,0.0002738,10]
[379476022,1755305439280,-282.90349952,0.00027389,2]
[379476024,1755305439289,-500.0,0.00027389,2]
[379476027,1755305439300,-500.0,0.00027389,2]
[379476029,1755305439310,-500.0,0.00027389,2]
[379476030,1755305439319,-500.0,0.00027389,2]
[379476032,1755305439328,-500.0,0.00027389,2]
[379476034,1755305439338,-500.0,0.00027389,2]
[379476036,1755305439347,-500.0,0.00027389,2]
[379476039,1755305439357,-500.0,0.00027389,2]
[379476041,1755305439368,-500.0,0.00027389,2]
[379476043,1755305439381,-500.0,0.00027389,2]
[379476045,1755305439391,-500.0,0.00027389,2]